bitfinex-derivatives/quotes_ETHF0:USTF0_20251229
["timestamp","ask_amount","ask_price","bid_price","bid_amount"]
[1766968741495,0.16837,2971.9,2971.4,0.6929705]
[1766968741700,0.6929705,2972.6,2970.8,3.08473323]
[1766968742002,0.6929705,2972.0,2970.8,2.39176273]
[1766968742200,0.6929705,2972.0,2970.9,0.6929705]
[1766968742598,0.69612064,2972.0,2970.9,0.6929705]
[1766968742799,0.86449064,2972.0,2970.8,0.69801819]
[1766968743303,0.17152014,2972.0,2971.0,0.6929705]
[1766968743500,0.17152014,2972.0,2971.2,0.6929705]
[1766968743700,5.61552014,2972.0,2971.2,0.6929705]
[1766968745098,5.61552014,2972.0,2970.8,0.69801819]
[1766968745299,5.61552014,2972.0,2971.1,0.6929705]
[1766968745507,0.17152014,2972.0,2971.1,0.6929705]
[1766968746101,0.86449064,2972.0,2970.9,0.6929705]
[1766968746301,0.86449064,2972.0,2970.8,0.00504769]
[1766968747310,0.17152014,2972.0,2970.9,0.6929705]
[1766968747510,0.86449064,2972.0,2970.8,0.69801819]
[1766968748609,0.17152014,2972.0,2970.8,0.00504769]
[1766968749515,0.16837,2971.9,2970.8,0.00504769]
[1766968750309,0.16837,2971.9,2970.8,2.39176273]
[1766968751312,0.16839,2971.6,2970.8,0.00504769]
[1766968751910,0.1684,2971.5,2970.8,0.00504769]
[1766968753709,0.00315014,2972.0,2971.0,0.97977509]
[1766968753914,0.16836,2972.2,2971.4,0.97977509]
[1766968754212,0.16836,2972.2,2971.4,3.36649013]
[1766968754619,0.16836,2972.2,2970.8,0.00504769]
[1766968754620,5.62732,2972.9,2971.8,0.97977509]
[1766968754914,5.62732,2972.9,2971.9,2.38671504]
[1766968755321,5.62732,2972.9,2971.1,4.376137]
[1766968755322,0.16828,2973.6,2972.2,3.36649013]
[1766968755525,0.16828,2973.6,2972.6,0.00504769]
[1766968757520,0.16828,2973.5,2972.6,0.00504769]
[1766968766735,0.16828,2973.5,2971.8,0.97977509]
[1766968767136,0.16828,2973.5,2971.9,4.31301455]
[1766968767635,0.00504769,2973.0,2972.4,0.00504769]
[1766968768222,0.00504769,2973.0,2971.9,4.31301455]
[1766968768223,0.00504769,2973.0,2971.7,2.38671504]
[1766968768428,0.00504769,2973.0,2971.4,2.38671504]
[1766968768829,0.00504769,2973.0,2971.3,2.38671504]
[1766968769231,0.00504769,2973.0,2971.4,5.42534238]
[1766968769431,0.00504769,2973.0,2971.9,0.00504769]
[1766968771731,0.17335769,2973.0,2971.9,0.00504769]
[1766968771932,0.16832,2972.9,2971.9,0.00504769]
[1766968773039,0.16832,2972.8,2971.9,0.00504769]
[1766968778940,0.16832,2972.8,2971.7,2.38671504]
[1766968779138,0.16832,2972.8,2971.6,2.38671504]
[1766968779339,0.16832,2972.8,2971.7,2.38671504]
[1766968780043,0.16832,2972.8,2972.0,0.00504769]
[1766968781541,0.16832,2972.8,2971.6,2.38671504]
[1766968782438,0.16832,2972.8,2971.7,2.38671504]
[1766968782639,0.16832,2972.8,2972.0,0.00504769]
[1766968783743,0.16832,2972.8,2971.8,2.38671504]
[1766968783936,0.16832,2972.8,2971.7,2.38671504]
[1766968784131,0.00504769,2973.0,2971.6,2.38671504]
[1766968784336,0.16836,2972.2,2971.2,2.38671504]
[1766968784745,0.16836,2972.2,2971.4,0.00504769]
[1766968785040,0.16836,2972.2,2971.0,2.38671504]
[1766968785539,0.16837,2972.1,2971.0,2.38671504]
[1766968785744,5.484,2972.3,2970.8,2.38671504]
[1766968785941,0.16838,2971.8,2970.6,2.38961749]
[1766968786145,0.00504769,2971.5,2970.6,0.00290245]
[1766968786937,0.00504769,2971.5,2970.6,2.38961749]
[1766968787346,0.00504769,2971.5,2970.6,0.00290245]
[1766968790849,0.17344769,2971.5,2970.6,0.00290245]
[1766968792650,0.1684,2971.4,2970.6,0.00290245]
[1766968793040,0.1684,2971.4,2970.1,2.38671504]
[1766968793238,0.00504769,2971.5,2970.0,2.38671504]
[1766968793239,0.86137327,2971.3,2970.0,2.38671504]
[1766968793446,0.16841,2971.3,2970.0,2.38671504]
[1766968793638,0.16841,2971.3,2970.2,0.69296327]
[1766968794042,0.17131245,2971.3,2970.2,0.6959835]
[1766968795452,0.17131245,2971.3,2970.2,0.00302023]
[1766968798649,0.17131245,2971.3,2970.3,0.69296327]
[1766968800043,0.17131245,2971.3,2970.2,0.00302023]
[1766968800348,0.00290245,2971.3,2970.6,0.69296327]
[1766968800740,0.16838,2971.9,2971.2,0.69296327]
[1766968800943,15.852,2972.7,2971.2,0.69296327]
[1766968801142,6.16896327,2973.0,2971.2,0.69296327]
[1766968801343,6.16896327,2973.0,2970.8,3.07967831]
[1766968801540,6.16896327,2973.0,2971.1,0.69296327]
[1766968801742,0.69296327,2972.7,2970.9,0.69296327]
[1766968801943,0.00504769,2972.3,2970.9,0.69296327]
[1766968804359,0.00504769,2972.3,2971.2,0.69296327]
[1766968804559,0.00504769,2972.3,2971.5,0.69296327]
[1766968805148,0.00504769,2972.3,2971.4,0.69296327]
[1766968805456,0.00504769,2972.3,2971.2,0.69296327]
[1766968807452,0.00504769,2972.3,2971.2,3.07967831]
[1766968807958,0.00504769,2972.3,2971.4,2.38671504]
[1766968811962,0.00504769,2972.3,2971.3,2.38671504]
[1766968812373,0.00504769,2972.3,2971.4,2.38671504]
[1766968817459,0.00504769,2972.3,2971.3,2.38671504]
[1766968817761,0.00504769,2972.3,2971.4,2.38671504]
[1766968817964,0.16833,2972.7,2971.8,0.69296327]
[1766968818159,0.16829,2973.4,2972.1,0.69296327]
[1766968819167,0.00504769,2973.0,2972.5,0.00504769]
[1766968819465,0.00504769,2973.0,2972.5,0.00795589]
[1766968819767,0.00795589,2973.0,2971.6,2.38671504]
[1766968820166,0.00795589,2973.0,2971.8,0.69296327]
[1766968820670,0.00795589,2973.0,2971.8,0.00327394]
[1766968821465,0.00795589,2973.0,2971.8,0.69623721]
[1766968822971,0.00795589,2973.0,2972.1,0.69296327]
[1766968824072,0.1683,2973.2,2972.4,0.69296327]
[1766968824967,0.1683,2973.2,2972.5,0.00504769]
[1766968825171,0.00504769,2973.1,2972.5,0.00504769]
[1766968825570,4.769e-05,2973.1,2972.5,0.00504769]
[1766968825773,5.472,2973.8,2972.5,0.00504769]
[1766968826764,0.00504769,2973.4,2972.5,0.00504769]
[1766968829067,0.1683,2973.3,2972.5,0.00504769]
[1766968829574,0.1683,2973.3,2972.5,0.69801096]
[1766968830566,0.1683,2973.3,2972.6,0.69194361]
[1766968832376,0.1683,2973.3,2972.5,0.00504769]
[1766968832672,0.1683,2973.3,2972.6,0.69194361]
[1766968832879,0.1683,2973.3,2972.5,0.00504769]
[1766968833377,0.1683,2973.3,2972.6,0.69194361]
[1766968835580,0.1683,2973.3,2972.5,0.00504769]
[1766968838073,0.1683,2973.3,2972.6,0.69194361]
[1766968838491,0.1683,2973.3,2972.5,0.00504769]
[1766968838779,0.86024361,2973.3,2972.5,0.00504769]
[1766968839082,0.1683,2973.3,2972.5,0.00504769]
[1766968839793,0.1683,2973.3,2972.5,0.6969913]
[1766968840089,0.1683,2973.3,2972.5,0.00504769]
[1766968841191,0.1683,2973.3,2972.5,0.6969913]
[1766968841390,0.1683,2973.3,2972.5,2.39176273]
[1766968841686,0.1683,2973.3,2972.5,0.00504769]
[1766968841891,0.86024361,2973.3,2972.5,0.00504769]
[1766968842191,0.69194361,2973.1,2972.5,4.769e-05]
[1766968842495,0.86025361,2973.1,2972.3,2.38671504]
[1766968843080,0.16831,2973.1,2972.3,2.38671504]
[1766968843395,0.16831,2973.1,2972.4,0.00504769]
[1766968845190,0.86025361,2973.1,2972.4,0.00504769]
[1766968846398,0.16831,2973.1,2972.4,0.00504769]
[1766968847796,0.16831,2973.1,2972.3,2.38671504]
[1766968850097,0.69194361,2973.2,2972.3,2.38671504]
[1766968850098,0.16831,2973.0,2972.3,2.38671504]
[1766968858400,0.16831,2973.0,2972.2,2.38671504]
[1766968865218,0.69194361,2972.5,2972.1,2.38671504]
[1766968865516,0.69194361,2972.7,2971.9,2.38671504]
[1766968868114,0.69194361,2972.5,2971.9,2.38671504]
[1766968868418,0.16834,2972.6,2971.8,0.00327394]
[1766968868620,0.69194361,2972.5,2971.8,0.00327394]
[1766968869112,5.64034,2972.6,2971.8,0.00327394]
[1766968869513,0.16834,2972.5,2971.8,0.00327394]
[1766968874214,0.16834,2972.4,2971.8,0.00327394]
[1766968882830,0.69194361,2972.1,2971.3,2.97806355]
[1766968883126,0.69194361,2972.1,2971.0,2.97806355]
[1766968883321,0.00504769,2971.8,2970.9,3.67000716]
[1766968883825,0.00504769,2971.8,2970.9,0.69194361]
[1766968884027,0.00832163,2971.8,2970.9,0.69603344]
[1766968884628,0.00832163,2971.8,2970.9,0.00408983]
[1766968885629,0.00832163,2971.8,2970.9,0.69603344]
[1766968887327,0.00832163,2971.8,2971.1,0.69194361]
[1766968887529,10.375,2972.7,2971.7,0.69194361]
[1766968887825,0.16834,2972.5,2971.7,0.69194361]
[1766968888228,0.16834,2972.5,2971.5,0.69194361]
[1766968888531,0.00504769,2972.3,2971.7,0.00504769]
[1766968890230,0.00504769,2972.3,2971.7,0.6969913]
[1766968890631,0.00504769,2972.3,2971.7,0.00504769]
[1766968891529,0.16834,2972.5,2971.7,0.00504769]
[1766968892534,0.00504769,2972.4,2971.7,0.00504769]
[1766968892933,0.16834,2972.5,2971.8,0.69231298]
[1766968893230,5.471,2972.9,2971.8,0.69231298]
[1766968894035,0.00504769,2972.6,2971.8,0.69231298]
[1766968894228,0.00504769,2972.6,2971.7,0.00504769]
[1766968897839,0.00504769,2972.6,2971.8,0.69231298]
[1766968900440,0.16832,2972.9,2971.8,0.69231298]
[1766968900741,0.16832,2972.9,2972.1,0.69231298]
[1766968901339,0.16827,2973.7,2972.4,0.69231298]
[1766968901538,0.00504769,2973.3,2972.4,0.69231298]
[1766968904441,0.00504769,2973.3,2972.1,0.69231298]
[1766968906736,0.00504769,2973.3,2971.9,2.97806355]
[1766968906938,0.00504769,2973.3,2971.8,3.67037653]
[1766968907245,0.00504769,2973.3,2971.7,0.00504769]
[1766968907546,0.00504769,2973.3,2971.8,0.69231298]
[1766968908442,0.1683,2973.2,2971.8,0.69231298]
[1766968908948,0.16831,2973.1,2971.7,0.00504769]
[1766968912842,0.69736067,2973.3,2971.7,0.00504769]
[1766968912843,0.16831,2973.0,2971.7,0.00504769]
[1766968914151,0.16832,2972.9,2971.7,0.00504769]
[1766968915149,0.16833,2972.7,2971.7,0.00504769]
[1766968916853,0.16833,2972.6,2971.7,0.00504769]
[1766968919752,0.69231298,2973.0,2971.7,0.00504769]
[1766968919949,0.16835,2972.3,2971.7,0.00504769]
[1766968920345,0.16836,2972.2,2971.0,3.67037653]
[1766968920549,0.16836,2972.2,2971.0,0.69231298]
[1766968920747,0.16836,2972.1,2971.0,0.69231298]
[1766968920942,0.69231298,2972.3,2970.9,2.98215338]
[1766968921147,0.16839,2971.6,2970.9,0.00408983]
[1766968921351,0.1684,2971.4,2970.6,2.97806355]
[1766968921653,0.1684,2971.4,2970.3,2.97806355]
[1766968921856,0.1684,2971.4,2970.2,2.97806355]
[1766968922060,0.16841,2971.3,2970.2,2.97806355]
[1766968922352,0.17165119,2971.3,2970.5,0.00504769]
[1766968926155,0.17165119,2971.3,2970.2,0.00433583]
[1766968927048,0.17165119,2971.3,2970.5,0.00504769]
[1766968929453,0.16841,2971.2,2970.5,0.00504769]
[1766968932255,0.16841,2971.2,2970.2,0.00433583]
[1766968932952,0.16841,2971.2,2970.3,0.69231298]
[1766968933158,0.00324119,2971.3,2970.6,0.69231298]
[1766968933350,0.00504769,2971.5,2970.6,0.69231298]
[1766968934257,0.00589633,2971.5,2970.6,0.69231298]
[1766968938064,0.16837,2971.9,2970.9,0.69231298]
[1766968938861,0.00504769,2971.7,2971.1,0.00504769]
[1766968939466,4.769e-05,2971.7,2971.1,0.00504769]
[1766968942461,4.769e-05,2971.7,2968.7,0.16855]
[1766968942662,0.16843,2971.0,2969.3,0.69231298]
[1766968942859,0.16843,2971.0,2969.6,0.69231298]
[1766968943563,0.00504769,2970.6,2970.0,0.00500001]
[1766968944663,0.00504769,2970.6,2970.1,0.00433583]
[1766968946964,0.00504769,2970.6,2970.0,0.00500001]
[1766968952574,0.69837967,2970.6,2970.0,0.00500001]
[1766968953070,0.69333198,2970.2,2969.6,0.00423828]
[1766968953266,0.69333198,2970.2,2969.1,0.69333198]
[1766968954382,0.69333198,2970.2,2969.1,0.69688419]
[1766968955179,0.86179198,2970.4,2969.1,0.69688419]
[1766968955681,0.16846,2970.4,2969.5,0.69333198]
[1766968955880,0.00504769,2970.6,2969.8,0.69333198]
[1766968956482,0.00504769,2970.6,2969.6,0.69333198]
[1766968957583,0.69837967,2970.6,2969.4,0.69333198]
[1766968958585,0.86682967,2970.6,2969.4,0.69333198]
[1766968959182,0.17349769,2970.6,2969.4,0.69333198]
[1766968959982,0.3366,2970.5,2969.4,0.69333198]
[1766968961281,0.50505,2970.5,2969.4,0.69333198]
[1766968961589,0.50505,2970.5,2969.1,0.00355221]
[1766968961890,0.50505,2970.5,2969.4,0.69333198]
[1766968962091,0.16846,2970.4,2969.4,0.69333198]
[1766968962882,0.16847,2970.2,2969.1,0.00355221]
[1766968963085,0.16847,2970.2,2969.2,0.69333198]
[1766968963391,0.16847,2970.2,2969.1,0.00355221]
[1766968963589,0.16847,2970.2,2969.4,0.69333198]
[1766968965085,0.16847,2970.2,2969.2,0.69333198]
[1766968965993,0.3366,2970.5,2969.5,0.69333198]
[1766968968184,0.3366,2970.5,2969.1,0.00355221]
[1766968968482,0.3366,2970.5,2969.4,0.69333198]
[1766968971586,0.3366,2970.5,2969.2,2.97806355]
[1766968971782,0.3366,2970.5,2969.3,0.69333198]
[1766968972390,0.3366,2970.5,2969.3,3.67139553]
[1766968972591,0.3366,2970.5,2969.5,0.00433583]
[1766968973191,0.69333198,2970.4,2969.5,0.00433583]
[1766968974497,0.69333198,2970.4,2969.3,2.97806355]
[1766968974693,0.00504769,2970.6,2969.7,0.00433583]
[1766968974694,0.69333198,2970.2,2969.7,0.00433583]
[1766968975094,0.69333198,2970.0,2969.1,0.00355221]
[1766968975692,0.3367,2969.9,2969.1,0.00355221]
[1766968982001,0.16849,2969.8,2969.1,0.00355221]
[1766968982201,0.16849,2969.8,2969.1,0.69688419]
[1766968982596,0.16849,2969.8,2969.1,0.00355221]
[1766968984106,0.16845,2970.5,2969.5,0.69333198]
[1766968986201,0.00504769,2970.6,2970.2,0.69333198]
[1766968986507,0.69333198,2970.7,2969.6,0.69333198]
[1766968987211,0.69333198,2970.8,2969.5,0.69333198]
[1766968987405,0.00504769,2970.4,2969.9,0.00504768]
[1766968990802,0.69837967,2970.4,2969.9,0.00504768]
[1766968991002,0.69837967,2970.4,2969.1,2.98161576]
[1766968991198,0.69837967,2970.4,2969.3,0.69333198]
[1766968991406,0.00504769,2970.4,2969.3,0.69333198]
[1766968992005,0.86683967,2970.4,2969.1,0.69688419]
[1766968992314,0.69333198,2970.2,2969.1,0.69688419]
[1766968993115,0.86683967,2970.4,2969.1,0.69688419]
[1766968993716,0.86683967,2970.4,2969.1,0.00355221]
[1766968993914,0.86683967,2970.4,2969.1,0.69688419]
[1766968994303,0.69333198,2970.2,2969.1,0.00355221]
[1766968996521,0.17350769,2970.4,2969.4,0.69333198]
[1766968997122,0.86683967,2970.4,2969.2,0.69333198]
[1766969000720,0.86683967,2970.4,2969.1,0.00355221]
[1766969000917,0.86683967,2970.4,2969.1,0.69688419]
[1766969001118,0.17350769,2970.4,2969.3,0.69333198]
[1766969001824,0.17350769,2970.4,2969.5,0.69333198]
[1766969002526,0.17350769,2970.4,2969.3,0.69333198]
[1766969005517,0.17350769,2970.4,2969.5,0.69333198]
[1766969006830,0.17350769,2970.4,2969.9,0.69333198]
[1766969007030,0.6961506,2971.0,2969.7,0.69333198]
[1766969007228,0.6961506,2971.0,2969.7,3.67139553]
[1766969007428,0.6961506,2971.0,2969.7,0.69333198]
[1766969007728,0.6961506,2971.0,2970.3,0.69333198]
[1766969007729,0.00281862,2971.0,2970.3,0.69333198]
[1766969008122,0.00504769,2970.9,2970.4,0.00504769]
[1766969009330,0.69333198,2972.5,2970.8,1.38666396]
[1766969009635,0.69333198,2972.3,2971.2,0.69333198]
[1766969009830,0.69333198,2972.3,2971.0,0.69333198]
[1766969010023,0.69333198,2972.1,2971.0,0.69333198]
[1766969010226,0.00504769,2971.8,2971.4,0.69333198]
[1766969010427,0.00428833,2972.1,2971.4,0.69333198]
[1766969010623,0.75189787,2973.6,2971.0,0.00424513]
[1766969010827,0.69333198,2973.2,2972.0,0.69333198]
[1766969011029,0.69333198,2973.0,2971.8,0.69333198]
[1766969011428,0.00504769,2972.7,2972.1,0.00504769]
[1766969011624,0.00651485,2972.7,2972.1,0.00504769]
[1766969014636,0.00651485,2972.7,2972.1,4.769e-05]
[1766969017243,0.00651485,2972.7,2971.0,0.00424513]
[1766969017537,0.00651485,2972.7,2971.1,4.37249872]
[1766969017926,0.17484485,2972.7,2971.0,0.00424513]
[1766969018332,0.17484485,2972.7,2971.6,0.00504769]
[1766969022643,0.16834,2972.6,2971.6,0.00504769]
[1766969022943,0.16834,2972.5,2971.6,0.00504769]
[1766969024636,0.00651485,2972.7,2971.0,0.00424513]
[1766969024844,0.16837,2972.0,2971.0,0.00424513]
[1766969029542,0.16838,2971.7,2969.3,0.16852]
[1766969029741,0.16838,2971.7,2969.7,1.10973919]
[1766969029943,0.16838,2971.7,2970.1,4.29241179]
[1766969030142,0.16838,2971.7,2969.7,1.10973919]
[1766969030451,0.16838,2971.7,2970.2,5.40215098]
[1766969030745,0.16838,2971.7,2970.7,0.00504769]
[1766969031641,0.00504769,2971.5,2970.7,0.00504769]
[1766969037055,0.17344769,2971.5,2970.7,4.769e-05]
[1766969040552,0.17344769,2971.5,2970.1,2.97806355]
[1766969040553,0.00504769,2971.5,2969.8,7.14735252]
[1766969040858,0.16842,2971.0,2969.8,2.97806355]
[1766969041756,0.16842,2971.0,2970.1,0.00504769]
[1766969042352,0.00504769,2971.5,2970.1,0.00504769]
[1766969043248,0.00504769,2971.5,2970.1,2.98311124]
[1766969043448,0.00504769,2971.5,2970.2,2.97806355]
[1766969043955,0.00504769,2971.5,2970.3,7.44354026]
[1766969044155,0.00504769,2971.5,2970.4,2.97806355]
[1766969044762,0.00504769,2971.5,2970.5,2.97806355]
[1766969045061,0.16839,2971.7,2970.5,7.41184216]
[1766969045260,0.16839,2971.7,2970.5,2.97806355]
[1766969046158,0.00504769,2971.4,2970.5,2.97806355]
[1766969048460,0.16839,2971.7,2970.5,2.97806355]
[1766969049963,0.16839,2971.7,2970.6,2.97806355]
[1766969050665,0.00504769,2971.4,2970.6,2.97806355]
[1766969054472,5.47304769,2971.4,2969.8,5.9561271]
[1766969054775,0.00504769,2971.4,2969.1,1.11112443]
[1766969055366,0.16843,2970.8,2969.1,1.11112443]
[1766969055565,0.16843,2970.8,2970.0,0.00504769]
[1766969060079,0.16844,2970.7,2970.0,4.769e-05]
[1766969060271,0.16844,2970.7,2968.7,0.16855]
[1766969061181,0.16844,2970.7,2969.9,0.00504769]
[1766969061878,0.16844,2970.7,2968.7,0.16855]
[1766969062078,0.16844,2970.7,2969.7,8.51e-06]
[1766969062872,0.16844,2970.7,2969.9,0.00504769]
[1766969063068,0.16844,2970.7,2969.7,8.51e-06]
[1766969063281,0.16845,2970.6,2969.7,8.51e-06]
[1766969063578,0.17150423,2970.6,2969.7,8.51e-06]
[1766969063878,0.16845,2970.5,2969.7,8.51e-06]
[1766969064882,0.16846,2970.4,2969.7,8.51e-06]
[1766969070084,0.16846,2970.4,2969.8,3.33233067]
[1766969070285,0.00305423,2970.6,2969.8,2.80407067]
[1766969070489,0.00305423,2970.6,2969.7,8.51e-06]
[1766969071286,0.16846,2970.4,2969.7,8.51e-06]
[1766969071682,0.16846,2970.4,2969.8,2.80407067]
[1766969073778,0.16846,2970.4,2969.7,8.51e-06]
[1766969075590,0.16846,2970.3,2969.7,8.51e-06]
[1766969076089,0.16846,2970.3,2969.8,2.44297067]
[1766969080193,0.16846,2970.3,2969.8,2.26177067]
[1766969080385,0.16846,2970.3,2969.8,2.07647067]
[1766969080582,0.00305423,2970.6,2969.8,0.23694481]
[1766969080891,0.16848,2970.1,2969.7,8.51e-06]
[1766969081085,0.16848,2970.1,2968.4,1.14928553]
[1766969081289,0.00305423,2970.6,2968.4,0.98071553]
[1766969081490,0.16849,2969.9,2968.5,4.36064394]
[1766969082191,0.16849,2969.9,2968.5,4.36398275]
[1766969082393,0.00504769,2969.5,2968.9,0.00504769]
[1766969082589,0.17355769,2969.5,2968.9,0.00504769]
[1766969083096,3.733,2969.4,2967.1,2.97883798]
[1766969083393,3.733,2969.4,2967.2,4.3932139]
[1766969083586,40.80504769,2969.5,2966.8,2.97883798]
[1766969083898,0.16852,2969.4,2967.1,4.42849496]
[1766969084096,0.69369388,2969.2,2967.3,0.69369388]
[1766969084396,0.69369388,2969.2,2968.0,0.69369388]
[1766969084599,0.16852,2969.3,2968.2,0.69369388]
[1766969084790,0.69369388,2969.2,2968.0,0.69369388]
[1766969085289,0.16852,2969.3,2968.2,0.69369388]
[1766969086188,0.16852,2969.3,2968.6,0.69369388]
[1766969086584,0.00504769,2969.5,2968.6,0.69369388]
[1766969086785,0.00504769,2969.5,2968.0,0.69369388]
[1766969086987,0.00504769,2969.5,2968.5,0.69369388]
[1766969087390,0.00504769,2969.5,2968.3,0.69369388]
[1766969088994,0.69369388,2969.4,2968.2,0.69369388]
[1766969089190,0.00504769,2969.5,2968.4,0.69369388]
[1766969091496,0.00504769,2969.5,2968.5,0.69369388]
[1766969092796,0.00504769,2969.5,2968.0,0.69369388]
[1766969092797,0.69369388,2969.3,2968.0,0.69369388]
[1766969093098,0.86221388,2969.3,2968.0,0.69369388]
[1766969093888,2.41282252,2971.4,2967.4,0.16863]
[1766969093889,2.41282252,2971.6,2967.6,1.61930724]
[1766969094095,0.16848,2970.0,2969.2,0.69369388]
[1766969094296,0.16848,2970.0,2969.2,0.69758849]
[1766969094992,0.00504769,2969.9,2969.3,0.00504769]
[1766969096197,0.17353769,2969.9,2969.3,0.00504769]
[1766969098904,0.16849,2969.8,2969.3,4.769e-05]
[1766969099599,0.86218388,2969.8,2969.3,4.769e-05]
[1766969099995,0.16849,2969.8,2969.3,4.769e-05]
[1766969100196,0.16852,2969.3,2967.1,5.64100081]
[1766969100393,0.16852,2969.3,2968.6,0.69369388]
[1766969100595,0.00504769,2969.9,2969.0,0.69369388]
[1766969100596,0.17353769,2969.9,2969.0,0.69369388]
[1766969101205,0.79635908,2971.2,2969.4,0.69369388]
[1766969101402,2.41282252,2973.6,2969.2,3.072]
[1766969101603,0.16842,2972.9,2969.5,4.39483173]
[1766969101800,0.16838,2971.8,2969.4,1.46755226]
[1766969102002,0.16838,2971.8,2969.5,4.37337494]
[1766969102199,0.16838,2971.8,2970.4,0.00504769]
[1766969102514,0.1684,2971.4,2970.4,0.00504769]
[1766969102702,1.1486815,2971.4,2970.4,0.00504769]
[1766969103101,0.16842,2971.4,2970.4,0.00504769]
[1766969103303,0.00504769,2971.2,2970.4,0.00504769]
[1766969103705,0.17346769,2971.2,2970.4,0.00504769]
[1766969105010,0.00504769,2971.2,2970.4,0.00504769]
[1766969105215,0.16839,2971.6,2970.4,0.00504769]
[1766969105400,0.16839,2971.6,2970.3,0.57530919]
[1766969105804,0.16839,2971.6,2969.9,0.9802615]
[1766969106113,0.00280029,2971.8,2970.3,0.9802615]
[1766969106409,0.00504769,2971.3,2970.8,0.00504769]
[1766969107405,0.00280029,2971.8,2970.8,0.00504769]
[1766969107612,0.16842,2971.6,2970.8,0.00504769]
[1766969108312,0.00504769,2971.5,2970.8,0.00504769]
[1766969108815,0.00280029,2971.8,2970.8,0.00504769]
[1766969109813,0.00504769,2971.6,2970.8,0.00504769]
[1766969110314,0.16837,2972.0,2970.8,0.00504769]
[1766969111011,1.70832,2972.8,2970.8,0.00504769]
[1766969111216,0.16842,2972.7,2970.8,0.00504769]
[1766969111416,0.00504769,2972.0,2971.1,0.9802615]
[1766969111618,0.00243283,2972.7,2971.5,0.9802615]
[1766969111912,0.9802615,2973.6,2971.6,4.41555682]
[1766969112113,0.16832,2972.9,2971.6,4.41555682]
[1766969112319,0.16832,2972.9,2971.1,0.00334393]
[1766969112618,0.00336519,2972.3,2971.7,0.00504769]
[1766969112813,0.16832,2972.9,2971.7,0.00504769]
[1766969113009,0.16832,2972.9,2971.8,4.44720941]
[1766969113309,0.16832,2972.9,2971.7,0.00504769]
[1766969113310,0.33674,2972.9,2971.7,0.00504769]
[1766969114013,0.33942726,2972.9,2971.7,0.00504769]
[1766969118616,0.17100726,2972.9,2971.8,4.46700888]
[1766969120214,0.16842,2972.6,2971.7,0.00504769]
[1766969120415,0.17100726,2972.9,2971.7,0.00504769]
[1766969120617,0.16842,2972.8,2971.7,0.00504769]
[1766969120817,0.33674,2972.8,2971.7,0.00504769]
[1766969122412,0.16835,2972.3,2971.7,7.69e-06]
[1766969122613,0.16836,2972.2,2971.7,7.69e-06]
[1766969123413,0.1734,2972.2,2971.7,7.69e-06]
[1766969124116,0.16506838,2971.7,2970.1,1.47439569]
[1766969124420,0.16838,2971.8,2970.2,4.31549078]
[1766969124620,0.16838,2971.8,2970.2,5.29575228]
[1766969125123,0.00504,2972.2,2970.7,0.00504769]
[1766969125422,0.00504,2972.2,2970.8,4.45758257]
[1766969126613,4e-05,2972.2,2971.0,0.9802615]
[1766969126822,0.00268726,2972.9,2971.4,0.9802615]
[1766969127319,0.00268726,2972.9,2971.5,4.37279854]
[1766969127916,0.16831,2973.1,2971.5,4.37279854]
[1766969128525,0.16506838,2972.9,2971.5,4.37279854]
[1766969128823,0.16850766,2972.9,2971.5,4.37279854]
[1766969129418,0.16506838,2972.8,2971.3,4.45919083]
[1766969129615,0.00343928,2972.9,2971.1,0.16842]
[1766969129822,0.16833,2972.7,2970.8,0.9802615]
[1766969130123,0.16506838,2972.8,2971.2,4.45064478]
[1766969130332,0.16506838,2972.8,2970.9,4.45064478]
[1766969130519,0.16506838,2972.8,2970.8,0.9802615]
[1766969130919,0.16506838,2972.8,2970.9,4.34224789]
[1766969131119,0.16506838,2972.8,2970.4,1.1487215]
[1766969131431,0.16506838,2972.8,2970.4,6.1357215]
[1766969132019,0.16506838,2972.8,2970.8,4.30490362]
[1766969132418,0.16835,2972.3,2970.8,4.30490362]
[1766969135018,0.16506838,2972.3,2970.8,4.30490362]
[1766969135226,0.16832,2972.8,2970.9,9.788]
[1766969135527,0.16832,2972.8,2971.0,4.47200668]
[1766969136629,0.16832,2972.8,2971.1,4.995]
[1766969137023,0.16832,2972.8,2971.2,4.42495706]
[1766969137431,0.16833,2972.7,2971.2,4.42495706]
[1766969137822,0.16833,2972.7,2971.2,4.998]
[1766969138122,0.16833,2972.7,2971.3,4.42042036]
[1766969138527,0.06616838,2972.8,2971.3,4.42042036]
[1766969138733,0.00343928,2972.9,2971.3,4.42042036]
[1766969139226,0.16833,2972.7,2971.3,4.42042036]
[1766969141029,0.16829,2973.3,2971.3,7.79342036]
[1766969141237,0.16829,2973.3,2972.0,0.00504769]
[1766969141435,40.8,2974.4,2972.0,0.00504769]
[1766969141633,40.8,2974.4,2972.1,4.39348238]
[1766969141634,0.90932561,2974.3,2972.1,4.39348238]
[1766969141826,0.90932561,2974.2,2972.1,4.39348238]
[1766969142027,0.90932561,2974.1,2972.1,4.39348238]
[1766969142335,0.90932561,2974.0,2972.1,4.39348238]
[1766969142538,0.90932561,2973.9,2972.1,4.39348238]
[1766969142828,0.16827,2973.7,2972.1,4.39348238]
[1766969143035,1.11006918,2973.0,2970.8,2.97883798]
[1766969143333,5.49168851,2974.3,2969.4,2.97883798]
[1766969143334,0.1684,2971.5,2969.4,2.97883798]
[1766969143534,0.1684,2971.5,2968.8,2.97883798]
[1766969143842,0.16833,2972.7,2970.0,1.11006918]
[1766969144037,0.16833,2972.7,2971.1,0.00504769]
[1766969144539,0.17191343,2972.7,2971.2,4.28237095]
[1766969144736,0.17191343,2972.7,2971.1,0.00761473]
[1766969145438,0.90928955,2972.6,2971.1,0.00761473]
[1766969145632,0.17191343,2972.7,2971.1,0.00761473]
[1766969145833,0.90933655,2972.6,2971.1,0.00761473]
[1766969146033,0.17191343,2972.7,2971.1,0.00761473]
[1766969146333,0.90934209,2972.6,2971.1,0.00761473]
[1766969146640,0.17191343,2972.7,2971.1,0.00761473]
[1766969146836,0.90911735,2972.6,2971.1,0.00761473]
[1766969147024,0.17191343,2972.7,2971.1,0.00761473]
[1766969147232,1.11006918,2972.3,2969.5,2.97883798]
[1766969147434,1.11006918,2972.3,2969.4,2.08]
[1766969147640,1.11006918,2972.3,2970.1,4.35234705]
[1766969147839,1.11006918,2972.3,2969.5,4.35234705]
[1766969148145,1.11006918,2972.3,2969.4,2.08]
[1766969148334,0.00504769,2971.1,2970.6,0.00504769]
[1766969154546,0.00504769,2971.1,2970.6,4.769e-05]
[1766969155946,7.11511687,2971.1,2969.4,0.00260116]
[1766969156132,1.11511687,2971.1,2969.4,0.00260116]
[1766969156338,0.16847,2970.2,2969.4,0.00260116]
[1766969156537,0.17207454,2970.2,2968.0,2.201]
[1766969156948,0.00504769,2969.4,2968.8,0.00504769]